[Event "10th Iberoamericano-ch 2024"]
[Site "Linares"]
[Date "2024.09.26"]
[Round "3.30"]
[White "Sicilia Laino, Juan Diego"]
[Black "Iglesias Ferreira, Andres"]
[Result "1-0"]
[ECO "B93"]
[WhiteElo "2090"]
[BlackElo "2285"]
[Annotator "RC"]
[PlyCount "51"]
[EventDate "2024.09.25"]
[EventType "swiss"]
[EventCountry "ESP"]
[SourceTitle "playchess.com"]
[Source "ChessBase"]
[SourceQuality "1"]
[TimeControl "5400+30"]

1. e4 {[%emt 0:00:09]} c5 {[%emt 0:00:10]} 2. Nf3 {[%emt 0:00:37]} d6 {[%emt 0:00:08]} 3. d4 {[%emt 0:00:07]} cxd4 4. Nxd4 {[%emt 0:00:02]} Nf6 {[%emt 0:00:23]} 5. Nc3 {[%emt 0:00:05]} a6 {[%emt 0:00:08]} 6. f4 {[%emt 0:02:06]} e5 {[%emt 0:03:38]} 7. Nf5 {[%emt 0:00:07]} Nxe4 {[%emt 0:07:46]} 8. Nxg7+ {[%emt 0:00:08]} Bxg7 {[%emt 0:00:10]} 9. Nxe4 {[%emt 0:00:06]} d5 {[%emt 0:01:41]} 10. Ng3 {[%emt 0:00:07]} O-O {[%emt 0:09:31]} 11. Be2 {[%emt 0:01:16]} e4 {[%emt 0:01:58]} 12. f5 {[%emt 0:04:33]} Qa5+ {[%emt 0:07:09]} 13. c3 {[%emt 0:06:21]} Qc5 {[%emt 0:01:35]} 14. Bg5 {[%emt 0:01:28]} Be5 {[%emt 0:09:56]} 15. Qd2 {[%emt 0:03:59]} f6 {[%emt 0:06:53]} 16. Bh6 {[%emt 0:01:20]} Rd8 {[%emt 0:00:45]} 17. Nxe4 {[%emt 0:01:04]} Qe7 {[%emt 0:01:00]} 18. Ng3 {[%emt 0:02:38]} Nc6 {[%emt 0:00:33]} 19. O-O {[%emt 0:02:09]} d4 {[%emt 0:02:11]} 20. Bc4+ {[%emt 0:03:05]} Kh8 {[%emt 0:00:26]} 21. Nh5 {[%emt 0:04:40]} dxc3 {[%emt 0:01:41]} 22. Qe2 {[%emt 0:00:37]} Rg8 {[%emt 0:01:53]} 23. bxc3 {[%emt 0:11:39]} b5 {[%emt 0:01:34]} 24. Bxg8 {[%emt 0:00:49]} Bd4+ {[%emt 0:01:03]} 25. cxd4 {[%emt 0:00:40]} Qxe2 {[%emt 0:00:08]} 26. Bf7 {[%emt 0:00:04]} 1-0

[Event "10th Iberoamericano-ch 2024"]
[Site "Linares"]
[Date "2024.09.26"]
[Round "3.31"]
[White "Giron, Jorge Ernesto"]
[Black "Ontanon Gomez, Pablo"]
[Result "1-0"]
[ECO "A54"]
[WhiteElo "2276"]
[BlackElo "2118"]
[Annotator "RC"]
[PlyCount "95"]
[EventDate "2024.09.25"]
[EventType "swiss"]
[EventCountry "ESP"]
[SourceTitle "playchess.com"]
[Source "ChessBase"]
[SourceQuality "1"]
[TimeControl "5400+30"]

1. d4 {[%emt 0:01:24]} Nf6 {[%emt 0:00:08]} 2. c4 {[%emt 0:00:05]} d6 {[%emt 0:00:37]} 3. Nc3 {[%emt 0:01:27]} e5 {[%emt 0:00:20]} 4. Nf3 {[%emt 0:00:08]} e4 {[%emt 0:00:38]} 5. Nd2 {[%emt 0:00:05]} Qe7 {[%emt 0:00:31]} 6. e3 {[%emt 0:00:14]} g6 {[%emt 0:00:31]} 7. Be2 {[%emt 0:00:20]} h5 {[%emt 0:00:54]} 8. h3 {[%emt 0:01:53]} Bg7 {[%emt 0:00:47]} 9. b4 {[%emt 0:00:09]} c6 {[%emt 0:04:06]} 10. a4 {[%emt 0:00:27]} Bf5 {[%emt 0:01:07]} 11. a5 {[%emt 0:00:43]} a6 {[%emt 0:09:47]} 12. Ba3 {[%emt 0:06:07]} Nbd7 {[%emt 0:02:04]} 13. Na4 {[%emt 0:00:10]} h4 {[%emt 0:03:40]} 14. b5 {[%emt 0:08:09]} O-O {[%emt 0:10:13]} 15. bxc6 {[%emt 0:00:14]} bxc6 {[%emt 0:00:22]} 16. c5 {[%emt 0:00:43]} Nd5 {[%emt 0:10:12]} 17. Nc4 {[%emt 0:39:38]} Qg5 {[%emt 0:02:45]} 18. Kf1 {[%emt 0:07:41]} dxc5 {[%emt 0:01:34]} 19. Nxc5 {[%emt 0:00:05]} Nxc5 {[%emt 0:03:19]} 20. Bxc5 {[%emt 0:00:01]} Rfd8 {[%emt 0:02:12]} 21. Nb6 {[%emt 0:04:50]} Rab8 {[%emt 0:20:21]} 22. Bxa6 {[%emt 0:00:42]} Nc7 {[%emt 0:02:39]} 23. Bc4 {[%emt 0:01:42]} Be6 {[%emt 0:02:53]} 24. Qc2 {[%emt 0:00:26]} Bxc4+ {[%emt 0:00:39]} 25. Nxc4 {[%emt 0:00:07]} Ne6 {[%emt 0:05:25]} 26. Bb6 Rf8 {[%emt 0:03:54]} 27. Qxe4 {[%emt 0:14:23]} c5 {[%emt 0:01:24]} 28. Kg1 {[%emt 0:01:09]} cxd4 {[%emt 0:00:29]} 29. exd4 {[%emt 0:00:01]} Rbc8 {[%emt 0:05:24]} 30. Ne5 {[%emt 0:02:34]} Nf4 {[%emt 0:02:36]} 31. Kh2 {[%emt 0:02:47]} Bxe5 {[%emt 0:00:59]} 32. dxe5 {[%emt 0:00:04]} Rc4 {[%emt 0:00:35]} 33. Qf3 {[%emt 0:00:04]} Qxe5 {[%emt 0:00:07]} 34. Rhe1 {[%emt 0:00:52]} Ne2+ {[%emt 0:01:58]} 35. Kh1 {[%emt 0:00:06]} Re4 {[%emt 0:00:06]} 36. Be3 {[%emt 0:01:40]} Nd4 {[%emt 0:00:22]} 37. Qd1 {[%emt 0:00:13]} Nb5 {[%emt 0:01:25]} 38. Bb6 {[%emt 0:00:37]} Re8 {[%emt 0:00:34]} 39. Rxe4 {[%emt 0:00:12]} Qxe4 {[%emt 0:00:01]} 40. Qa4 {[%emt 0:02:08]} Qe5 {[%emt 0:01:10]} 41. Rc1 {[%emt 0:00:24]} Qg5 {[%emt 0:01:13]} 42. Rb1 {[%emt 0:00:59]} Nd6 {[%emt 0:00:37]} 43. a6 {[%emt 0:01:51]} Qf5 {[%emt 0:00:37]} 44. Rd1 {[%emt 0:00:19]} Rc8 {[%emt 0:00:43]} 45. a7 {[%emt 0:00:29]} Qb5 {[%emt 0:00:20]} 46. Qxb5 {[%emt 0:00:34]} Nxb5 {[%emt 0:00:02]} 47. Rd5 {[%emt 0:00:12]} Nxa7 {[%emt 0:00:32]} 48. Bxa7 {[%emt 0:00:04]} 1-0

[Event "10th Iberoamericano-ch 2024"]
[Site "Linares"]
[Date "2024.09.26"]
[Round "3.32"]
[White "Palma Villanueva, Miguel Tadeo"]
[Black "Jimenez Fernandez, Rebeca"]
[Result "1-0"]
[ECO "B12"]
[WhiteElo "2266"]
[BlackElo "2097"]
[Annotator "RC"]
[PlyCount "63"]
[EventDate "2024.09.25"]
[EventType "swiss"]
[EventCountry "ESP"]
[SourceTitle "playchess.com"]
[Source "ChessBase"]
[SourceQuality "1"]
[TimeControl "5400+30"]

1. e4 {[%emt 0:01:08]} c6 {[%emt 0:00:05]} 2. d4 {[%emt 0:00:04]} d5 {[%emt 0:00:03]} 3. e5 {[%emt 0:00:05]} c5 {[%emt 0:00:16]} 4. Nf3 {[%emt 0:00:05]} cxd4 {[%emt 0:00:19]} 5. Qxd4 {[%emt 0:00:06]} Nc6 {[%emt 0:00:09]} 6. Qf4 {[%emt 0:00:42]} e6 {[%emt 0:08:41]} 7. Bd3 {[%emt 0:01:05]} Nb4 {[%emt 0:14:14]} 8. Nc3 {[%emt 0:01:26]} Nxd3+ {[%emt 0:06:15]} 9. cxd3 {[%emt 0:00:05]} Qd7 {[%emt 0:20:12]} 10. O-O {[%emt 0:06:37]} Ne7 {[%emt 0:00:57]} 11. Bd2 {[%emt 0:03:57]} Ng6 {[%emt 0:00:31]} 12. Qg3 {[%emt 0:00:16]} b6 {[%emt 0:02:48]} 13. h4 {[%emt 0:12:57]} Ba6 {[%emt 0:06:00]} 14. h5 {[%emt 0:01:56]} Ne7 {[%emt 0:06:49]} 15. Nd4 {[%emt 0:00:24]} Rg8 {[%emt 0:03:08]} 16. Rfc1 {[%emt 0:11:15]} g6 {[%emt 0:09:30]} 17. h6 {[%emt 0:00:08]} g5 {[%emt 0:00:40]} 18. a4 {[%emt 0:03:27]} Nf5 {[%emt 0:10:11]} 19. Nxf5 {[%emt 0:02:16]} exf5 {[%emt 0:00:05]} 20. Qf3 {[%emt 0:13:43]} Rd8 {[%emt 0:00:21]} 21. Ne2 {[%emt 0:03:35]} Bxh6 {[%emt 0:02:50]} 22. Qh5 {[%emt 0:02:04]} Rg6 {[%emt 0:01:37]} 23. Nd4 {[%emt 0:03:04]} Bxd3 {[%emt 0:04:44]} 24. Rc3 {[%emt 0:05:28]} Ba6 {[%emt 0:00:47]} 25. Rac1 {[%emt 0:03:33]} Rc8 {[%emt 0:00:16]} 26. Rxc8+ {[%emt 0:03:08]} Bxc8 {[%emt 0:00:04]} 27. Nb5 {[%emt 0:00:17]} Kf8 {[%emt 0:00:36]} 28. Rc7 {[%emt 0:05:03]} Qd8 {[%emt 0:00:58]} 29. Bb4+ {[%emt 0:00:34]} Kg7 {[%emt 0:01:06]} 30. Be7 {[%emt 0:00:10]} Qe8 {[%emt 0:00:21]} 31. Bf6+ {[%emt 0:01:45]} Rxf6 {[%emt 0:00:16]} 32. exf6+ {[%emt 0:00:05]} 1-0

[Event "10th Iberoamericano-ch 2024"]
[Site "Linares"]
[Date "2024.09.26"]
[Round "3.33"]
[White "Dias, Ivo Rodrigues"]
[Black "Moral Garcia, Serafin"]
[Result "0-1"]
[ECO "C78"]
[WhiteElo "2077"]
[BlackElo "2262"]
[Annotator "RC"]
[PlyCount "100"]
[EventDate "2024.09.25"]
[EventType "swiss"]
[EventCountry "ESP"]
[SourceTitle "playchess.com"]
[Source "ChessBase"]
[SourceQuality "1"]
[TimeControl "5400+30"]

1. e4 {[%emt 0:06:56]} e5 {[%emt 0:00:10]} 2. Nf3 {[%emt 0:00:36]} Nc6 {[%emt 0:00:08]} 3. Bb5 {[%emt 0:00:11]} a6 {[%emt 0:00:11]} 4. Ba4 {[%emt 0:00:11]} Nf6 {[%emt 0:00:11]} 5. O-O {[%emt 0:00:13]} Bc5 {[%emt 0:00:37]} 6. Nxe5 {[%emt 0:12:41]} Nxe5 {[%emt 0:00:23]} 7. d4 {[%emt 0:00:03]} b5 {[%emt 0:02:27]} 8. Bb3 {[%emt 0:00:46]} Bxd4 {[%emt 0:01:47]} 9. Qxd4 {[%emt 0:01:06]} d6 {[%emt 0:00:13]} 10. f4 {[%emt 0:07:10]} c5 {[%emt 0:00:58]} 11. Qd1 {[%emt 0:07:21]} Nc6 {[%emt 0:02:20]} 12. a4 {[%emt 0:12:34]} Bb7 {[%emt 0:09:01]} 13. Nc3 {[%emt 0:11:46]} c4 {[%emt 0:06:35]} 14. Ba2 {[%emt 0:00:03]} O-O {[%emt 0:00:26]} 15. Be3 {[%emt 0:10:02]} Nb4 {[%emt 0:05:15]} 16. e5 {[%emt 0:02:15]} dxe5 {[%emt 0:06:16]} 17. Bc5 {[%emt 0:01:53]} Nxa2 {[%emt 0:00:19]} 18. Rxa2 {[%emt 0:01:22]} Re8 {[%emt 0:03:19]} 19. axb5 {[%emt 0:01:06]} axb5 {[%emt 0:01:41]} 20. Qxd8 {[%emt 0:00:40]} Raxd8 {[%emt 0:02:05]} 21. Ra7 {[%emt 0:01:11]} Bc6 {[%emt 0:03:30]} 22. Rc7 {[%emt 0:04:54]} Rc8 {[%emt 0:02:43]} 23. Rxc8 {[%emt 0:00:19]} Rxc8 {[%emt 0:00:01]} 24. fxe5 {[%emt 0:00:03]} Ng4 {[%emt 0:01:45]} 25. Bd4 {[%emt 0:03:24]} Rd8 {[%emt 0:01:04]} 26. Rf4 {[%emt 0:01:25]} h5 {[%emt 0:00:39]} 27. h3 {[%emt 0:00:31]} g5 {[%emt 0:06:55]} 28. Rf5 {[%emt 0:00:49]} Rxd4 {[%emt 0:00:06]} 29. Rxg5+ {[%emt 0:00:07]} Kf8 {[%emt 0:00:06]} 30. hxg4 {[%emt 0:00:20]} hxg4 {[%emt 0:01:16]} 31. e6 {[%emt 0:11:14]} fxe6 {[%emt 0:03:16]} 32. Re5 {[%emt 0:00:01]} Ke7 {[%emt 0:03:07]} 33. Kf2 {[%emt 0:01:56]} Kd6 {[%emt 0:08:14]} 34. Re2 {[%emt 0:00:17]} e5 {[%emt 0:02:15]} 35. Kg3 {[%emt 0:01:03]} Ke6 {[%emt 0:05:42]} 36. Rf2 {[%emt 0:00:28]} Rd8 {[%emt 0:07:05]} 37. Kxg4 {[%emt 0:00:21]} Rg8+ {[%emt 0:00:02]} 38. Kh3 {[%emt 0:00:16]} Ra8 {[%emt 0:00:38]} 39. g4 {[%emt 0:00:38]} e4 {[%emt 0:08:41]} 40. g5 {[%emt 0:00:23]} Ke5 {[%emt 0:00:20]} 41. Kg4 {[%emt 0:01:03]} Bd7+ {[%emt 0:00:47]} 42. Kh5 {[%emt 0:00:48]} e3 {[%emt 0:02:31]} 43. Rf3 {[%emt 0:00:23]} Rh8+ {[%emt 0:01:33]} 44. Kg6 Rh3 45. Rf8 {[%emt 0:01:22]} b4 {[%emt 0:00:30]} 46. Ne2 {[%emt 0:00:38]} Rh2 {[%emt 0:00:18]} 47. Ng3 {[%emt 0:00:31]} e2 {[%emt 0:00:28]} 48. Nxe2 {[%emt 0:00:18]} Rxe2 {[%emt 0:00:01]} 49. Rd8 {[%emt 0:00:12]} Bf5+ {[%emt 0:00:28]} 50. Kg7 {[%emt 0:00:30]} Rxc2 {[%emt 0:00:12]} 0-1

[Event "10th Iberoamericano-ch 2024"]
[Site "Linares"]
[Date "2024.09.26"]
[Round "3.34"]
[White "Jimenez Ruano, Adrian"]
[Black "Jodorcovsky Werjivker, Paulo"]
[Result "0-1"]
[ECO "D31"]
[WhiteElo "2255"]
[BlackElo "2092"]
[Annotator "RC"]
[PlyCount "72"]
[EventDate "2024.09.25"]
[EventType "swiss"]
[EventCountry "ESP"]
[SourceTitle "playchess.com"]
[Source "ChessBase"]
[SourceQuality "1"]
[TimeControl "5400+30"]

1. d4 {[%emt 0:09:41]} d5 {[%emt 0:00:18]} 2. c4 {[%emt 0:00:43]} e6 {[%emt 0:00:08]} 3. Nc3 {[%emt 0:00:13]} a6 {[%emt 0:00:12]} 4. cxd5 {[%emt 0:00:09]} exd5 {[%emt 0:00:06]} 5. Bf4 {[%emt 0:00:24]} Nf6 {[%emt 0:00:22]} 6. e3 {[%emt 0:00:06]} c5 {[%emt 0:00:25]} 7. Nge2 {[%emt 0:00:22]} Nc6 {[%emt 0:00:36]} 8. g3 {[%emt 0:00:08]} cxd4 {[%emt 0:00:55]} 9. Nxd4 {[%emt 0:01:15]} Bg4 {[%emt 0:01:14]} 10. Nxc6 {[%emt 0:14:22]} bxc6 {[%emt 0:00:36]} 11. Qa4 {[%emt 0:00:11]} Bd7 {[%emt 0:00:38]} 12. Bg2 {[%emt 0:07:31]} Bc5 {[%emt 0:18:05]} 13. O-O {[%emt 0:05:35]} O-O {[%emt 0:00:17]} 14. Rac1 {[%emt 0:01:26]} Re8 {[%emt 0:03:20]} 15. Qc2 {[%emt 0:24:23]} Ba7 {[%emt 0:05:12]} 16. e4 {[%emt 0:19:17]} d4 {[%emt 0:14:15]} 17. Na4 {[%emt 0:00:02]} Qa5 {[%emt 0:00:52]} 18. b3 {[%emt 0:02:43]} Qh5 {[%emt 0:02:37]} 19. Rfe1 {[%emt 0:02:34]} d3 {[%emt 0:17:13]} 20. Qxd3 {[%emt 0:00:10]} Ng4 {[%emt 0:01:09]} 21. Qxd7 {[%emt 0:08:51]} Bxf2+ {[%emt 0:03:39]} 22. Kf1 {[%emt 0:00:02]} Qxh2 {[%emt 0:22:28]} 23. Qxg4 {[%emt 0:00:02]} Qg1+ {[%emt 0:00:19]} 24. Ke2 {[%emt 0:00:01]} Qxg2 {[%emt 0:00:24]} 25. Nc3 {[%emt 0:00:14]} Bb6+ {[%emt 0:01:14]} 26. Kd3 {[%emt 0:02:18]} Rad8+ {[%emt 0:00:28]} 27. Nd5 {[%emt 0:00:06]} cxd5 {[%emt 0:01:55]} 28. Re2 {[%emt 0:01:10]} dxe4+ {[%emt 0:00:43]} 29. Kc2 {[%emt 0:00:30]} Qf3 {[%emt 0:00:46]} 30. Qxf3 {[%emt 0:00:01]} exf3 {[%emt 0:00:08]} 31. Rxe8+ {[%emt 0:00:14]} Rxe8 {[%emt 0:00:04]} 32. Kd3 {[%emt 0:00:25]} f2 {[%emt 0:00:13]} 33. Bd2 {[%emt 0:00:26]} f5 {[%emt 0:01:01]} 34. b4 {[%emt 0:00:35]} g5 {[%emt 0:00:31]} 35. a4 {[%emt 0:01:07]} f4 {[%emt 0:00:36]} 36. gxf4 {[%emt 0:00:35]} g4 {[%emt 0:00:08]} 0-1

[Event "10th Iberoamericano-ch 2024"]
[Site "Linares"]
[Date "2024.09.26"]
[Round "3.35"]
[White "Li Chen, Helena Joana"]
[Black "Masague Artero, Guerau"]
[Result "0-1"]
[ECO "B08"]
[WhiteElo "2068"]
[BlackElo "2251"]
[Annotator "RC"]
[PlyCount "106"]
[EventDate "2024.09.25"]
[EventType "swiss"]
[EventCountry "ESP"]
[SourceTitle "playchess.com"]
[Source "ChessBase"]
[SourceQuality "1"]
[TimeControl "5400+30"]

1. e4 {[%emt 0:00:07]} g6 {[%emt 0:03:08]} 2. d4 {[%emt 0:00:24]} Bg7 {[%emt 0:00:08]} 3. Nf3 {[%emt 0:00:30]} d6 {[%emt 0:00:08]} 4. Be2 {[%emt 0:01:03]} Nf6 {[%emt 0:00:21]} 5. Nc3 {[%emt 0:00:24]} O-O {[%emt 0:00:19]} 6. h3 {[%emt 0:01:55]} a6 {[%emt 0:12:01]} 7. a4 {[%emt 0:03:17]} Nc6 {[%emt 0:00:08]} 8. d5 {[%emt 0:10:40]} Na7 {[%emt 0:14:09]} 9. Be3 {[%emt 0:03:12]} e5 {[%emt 0:12:03]} 10. Qd2 {[%emt 0:06:35]} Bd7 {[%emt 0:00:55]} 11. a5 {[%emt 0:07:56]} Nb5 {[%emt 0:05:11]} 12. Nxb5 {[%emt 0:15:02]} axb5 {[%emt 0:00:28]} 13. Qb4 {[%emt 0:01:33]} c5 {[%emt 0:01:35]} 14. dxc6 {[%emt 0:00:05]} bxc6 {[%emt 0:05:49]} 15. Qxd6 {[%emt 0:03:36]} Nxe4 {[%emt 0:03:40]} 16. Qb4 {[%emt 0:00:12]} Nf6 {[%emt 0:00:56]} 17. c4 {[%emt 0:02:43]} bxc4 {[%emt 0:03:08]} 18. Bxc4 {[%emt 0:01:03]} Nd5 {[%emt 0:00:26]} 19. Bxd5 {[%emt 0:01:49]} cxd5 {[%emt 0:00:08]} 20. Bb6 {[%emt 0:00:04]} Qf6 {[%emt 0:01:15]} 21. h4 {[%emt 0:06:04]} d4 {[%emt 0:13:03]} 22. O-O {[%emt 0:08:26]} Bc6 {[%emt 0:01:36]} 23. Qb3 {[%emt 0:01:13]} d3 {[%emt 0:02:26]} 24. Rfd1 {[%emt 0:04:51]} e4 {[%emt 0:05:19]} 25. Nd4 {[%emt 0:00:19]} Bd7 {[%emt 0:01:26]} 26. Qd5 {[%emt 0:02:54]} Bg4 {[%emt 0:01:07]} 27. Qxe4 {[%emt 0:02:12]} Bxd1 {[%emt 0:00:19]} 28. Rxd1 {[%emt 0:00:03]} Rfe8 {[%emt 0:01:37]} 29. Qxd3 {[%emt 0:01:24]} Qxh4 {[%emt 0:00:46]} 30. b4 {[%emt 0:03:46]} Be5 {[%emt 0:07:49]} 31. g3 {[%emt 0:01:35]} Qg4 {[%emt 0:00:01]} 32. Qe2 {[%emt 0:03:26]} Qh3 {[%emt 0:01:06]} 33. Qf1 {[%emt 0:01:24]} Qg4 {[%emt 0:00:01]} 34. Qe2 {[%emt 0:00:14]} Qc8 {[%emt 0:00:01]} 35. Qf3 {[%emt 0:00:44]} Qc4 {[%emt 0:01:25]} 36. Nc6 {[%emt 0:00:46]} Bb2 {[%emt 0:01:05]} 37. Ne7+ {[%emt 0:02:05]} Kg7 {[%emt 0:00:19]} 38. Nd5 {[%emt 0:00:20]} Rac8 {[%emt 0:00:17]} 39. Qd3 {[%emt 0:01:47]} Re1+ {[%emt 0:00:40]} 40. Kh2 {[%emt 0:00:18]} Rxd1 {[%emt 0:00:23]} 41. Qxd1 {[%emt 0:00:03]} Qe4 {[%emt 0:00:36]} 42. a6 {[%emt 0:01:22]} Rc1 {[%emt 0:00:46]} 43. f3 {[%emt 0:01:04]} Qc4 {[%emt 0:00:09]} 44. Ne3 {[%emt 0:00:35]} Qxb4 {[%emt 0:01:18]} 45. Nd5 {[%emt 0:01:06]} Qc4 {[%emt 0:00:55]} 46. Ne3 {[%emt 0:00:42]} Qc3 {[%emt 0:00:45]} 47. Qd5 {[%emt 0:00:57]} Qb4 {[%emt 0:02:11]} 48. a7 {[%emt 0:00:34]} Qxb6 {[%emt 0:00:14]} 49. a8=Q {[%emt 0:00:35]} Qxe3 {[%emt 0:00:06]} 50. Qa4 {[%emt 0:00:56]} Qg1+ {[%emt 0:00:31]} 51. Kh3 {[%emt 0:00:04]} Qh1+ {[%emt 0:00:03]} 52. Kg4 {[%emt 0:00:02]} f5+ {[%emt 0:00:08]} 53. Kf4 {[%emt 0:00:24]} Qh6# {[%emt 0:00:06]} 0-1

[Event "10th Iberoamericano-ch 2024"]
[Site "Linares"]
[Date "2024.09.26"]
[Round "3.36"]
[White "Cabezas Solano, David Alejandro"]
[Black "Lorente Serrano, Rosa Adela"]
[Result "0-1"]
[ECO "A05"]
[WhiteElo "2248"]
[BlackElo "2087"]
[Annotator "RC"]
[PlyCount "100"]
[EventDate "2024.09.25"]
[EventType "swiss"]
[EventCountry "ESP"]
[SourceTitle "playchess.com"]
[Source "ChessBase"]
[SourceQuality "1"]
[TimeControl "5400+30"]

1. Nf3 {[%emt 0:00:54]} Nf6 {[%emt 0:00:30]} 2. g3 {[%emt 0:00:04]} g6 {[%emt 0:00:05]} 3. b3 {[%emt 0:00:08]} Bg7 {[%emt 0:00:36]} 4. Bb2 {[%emt 0:00:05]} d6 {[%emt 0:08:03]} 5. d4 {[%emt 0:00:45]} b5 {[%emt 0:02:23]} 6. Bg2 {[%emt 0:02:10]} Bb7 {[%emt 0:03:46]} 7. Qd3 {[%emt 0:06:54]} a6 {[%emt 0:04:14]} 8. c4 {[%emt 0:00:35]} bxc4 {[%emt 0:00:48]} 9. bxc4 {[%emt 0:00:08]} O-O {[%emt 0:01:49]} 10. O-O {[%emt 0:00:30]} Nbd7 {[%emt 0:00:30]} 11. Nbd2 {[%emt 0:14:09]} a5 {[%emt 0:14:15]} 12. Qc2 {[%emt 0:12:25]} c5 {[%emt 0:04:57]} 13. d5 {[%emt 0:02:00]} a4 {[%emt 0:00:30]} 14. Rab1 {[%emt 0:01:53]} Qc7 {[%emt 0:04:30]} 15. e4 {[%emt 0:03:39]} Nb6 {[%emt 0:14:17]} 16. e5 {[%emt 0:04:03]} dxe5 {[%emt 0:05:19]} 17. Bxe5 {[%emt 0:01:01]} Qd8 {[%emt 0:00:30]} 18. Qb2 {[%emt 0:09:49]} Ra6 {[%emt 0:00:19]} 19. Qb5 {[%emt 0:11:09]} Nfd7 {[%emt 0:14:34]} 20. Bxg7 {[%emt 0:01:51]} Kxg7 {[%emt 0:00:03]} 21. Bh3 {[%emt 0:01:31]} Bc8 {[%emt 0:01:54]} 22. Ne4 {[%emt 0:00:51]} Qc7 {[%emt 0:00:45]} 23. Rfd1 {[%emt 0:08:19]} Qa7 {[%emt 0:04:11]} 24. Nxc5 {[%emt 0:01:12]} Nxc5 {[%emt 0:01:04]} 25. Qxc5 {[%emt 0:03:17]} Bxh3 {[%emt 0:00:09]} 26. Qd4+ {[%emt 0:00:01]} Kg8 {[%emt 0:01:57]} 27. Ne5 {[%emt 0:02:28]} Nc8 {[%emt 0:01:05]} 28. c5 {[%emt 0:00:22]} Bf5 {[%emt 0:02:46]} 29. Rb4 {[%emt 0:01:45]} Qc7 30. g4 Bd7 {[%emt 0:03:00]} 31. Rdb1 {[%emt 0:04:15]} Be8 {[%emt 0:05:24]} 32. Rb7 {[%emt 0:02:11]} Qa5 33. Nc4 Qd8 {[%emt 0:00:38]} 34. Rb8 {[%emt 0:01:36]} Bc6 {[%emt 0:01:19]} 35. Nb6 {[%emt 0:01:21]} Qc7 {[%emt 0:01:11]} 36. Nxc8 {[%emt 0:00:24]} Rxc8 {[%emt 0:00:08]} 37. Rxc8+ {[%emt 0:00:07]} Qxc8 {[%emt 0:00:03]} 38. dxc6 {[%emt 0:00:05]} Rxc6 {[%emt 0:01:22]} 39. Rc1 h5 40. h3 {[%emt 0:04:32]} hxg4 {[%emt 0:00:35]} 41. hxg4 {[%emt 0:00:21]} Ra6 {[%emt 0:00:29]} 42. Kg2 {[%emt 0:00:48]} e5 {[%emt 0:00:48]} 43. Qc4 {[%emt 0:00:35]} Rf6 {[%emt 0:00:23]} 44. f3 {[%emt 0:00:30]} Rf4 {[%emt 0:00:30]} 45. Qc3 {[%emt 0:00:30]} e4 {[%emt 0:00:22]} 46. Rh1 {[%emt 0:01:07]} exf3+ {[%emt 0:00:18]} 47. Kf2 f6 {[%emt 0:00:08]} 48. Qe3 {[%emt 0:01:30]} Rxg4 {[%emt 0:00:30]} 49. Qe7 {[%emt 0:00:34]} Rg2+ {[%emt 0:00:30]} 50. Kxf3 {[%emt 0:00:05]} Qg4+ {[%emt 0:00:08]} 0-1